bitfinex-derivatives/quotes_BTCF0:USTF0_20241110
["timestamp","ask_amount","ask_price","bid_price","bid_amount"]
[1731202568717,0.02513487,76816.0,76812.0,0.17716532]
[1731202569109,0.065054,76817.0,76812.0,0.17716532]
[1731202569110,0.02513564,76815.0,76812.0,0.17716532]
[1731202569310,0.02513564,76814.0,76812.0,0.17716532]
[1731202569610,0.02513564,76813.0,76812.0,0.17716532]
[1731202572318,0.3608,76823.0,76817.0,0.065053]
[1731202572511,0.3608,76823.0,76818.0,0.11210832]
[1731202577607,0.3608,76823.0,76819.0,0.065052]
[1731202578719,0.3608,76823.0,76818.0,0.11210832]
[1731202578720,0.065051,76820.0,76818.0,0.11210832]
[1731202579024,0.3608,76823.0,76818.0,0.11210832]
[1731202579222,0.02513445,76822.0,76818.0,0.11210832]
[1731202579427,0.3608,76823.0,76820.0,0.065051]
[1731202579428,0.02513445,76821.0,76820.0,0.065051]
[1731202579621,0.02513445,76821.0,76818.0,0.11210832]
[1731202579622,0.3608,76823.0,76818.0,0.11210832]
[1731202580621,0.3608,76823.0,76818.0,0.17716132]
[1731202581823,0.3608,76823.0,76813.0,0.02238323]
[1731202581824,0.3608,76823.0,76814.0,0.10484]
[1731202582021,0.3608,76823.0,76818.0,0.11210832]
[1731202582426,0.425848,76823.0,76818.0,0.11210832]
[1731202583123,0.3608,76823.0,76818.0,0.11210832]
[1731202583326,0.3608,76823.0,76818.0,0.17716032]
[1731202586334,0.425849,76823.0,76818.0,0.17716032]
[1731202586733,0.02513414,76822.0,76818.0,0.10391562]
[1731202587032,0.02513414,76821.0,76818.0,0.10391562]
[1731202587332,0.09693698,76820.0,76818.0,0.10391562]
[1731202587538,0.09693698,76819.0,76818.0,0.10391562]
[1731202587733,0.07180284,76819.0,76818.0,0.10391562]
[1731202587929,0.09693717,76819.0,76818.0,0.10391562]
[1731202588133,0.09693716,76819.0,76818.0,0.10391562]
[1731202589034,0.03186376,76819.0,76818.0,0.10391562]
[1731202589240,0.55589695,76823.0,76818.0,0.10391562]
[1731202589534,0.55521695,76823.0,76818.0,0.10391562]
[1731202591233,0.55521695,76823.0,76818.0,0.065052]
[1731202591426,0.06505,76821.0,76814.0,0.10484]
[1731202591834,0.49084795,76823.0,76813.0,0.169737]
[1731202592035,0.065052,76819.0,76813.0,0.169737]
[1731202592230,0.49084795,76823.0,76813.0,0.065057]
[1731202592231,0.49016795,76823.0,76813.0,0.065057]
[1731202592544,0.065056,76814.0,76809.0,0.06506]
[1731202592745,0.0321,76813.0,76809.0,0.06506]
[1731202594737,0.0645,76813.0,76810.0,0.065059]
[1731202594936,0.065058,76812.0,76806.0,0.11210832]
[1731202595240,0.096758,76812.0,76806.0,0.11210832]
[1731202595541,0.096758,76812.0,76808.0,0.065061]
[1731202596839,0.096758,76812.0,76806.0,0.10391293]
[1731202597634,0.096758,76812.0,76808.0,0.065061]
[1731202598941,0.096758,76812.0,76809.0,0.06506]
[1731202601538,0.096758,76812.0,76811.0,0.07209595]
[1731202601741,0.12189583,76812.0,76811.0,0.07209595]
[1731202605441,0.12189583,76812.0,76811.0,0.13715495]
[1731202605442,0.02513783,76812.0,76811.0,0.13715495]
[1731202606230,0.02513783,76812.0,76811.0,0.2092509]
[1731202606434,0.02513635,76812.0,76811.0,0.1441919]
[1731202607233,0.17390475,76832.0,76828.0,0.065044]
[1731202607234,0.12936795,76830.0,76828.0,0.065044]
[1731202607439,0.03186175,76829.0,76828.0,0.065044]
[1731202607641,0.12936795,76839.0,76828.0,0.1441919]
[1731202607850,0.03185787,76838.0,76836.0,0.065037]
[1731202608140,0.00195306,76840.0,76836.0,0.169717]
[1731202608141,0.03185787,76837.0,76836.0,0.169717]
[1731202608336,0.00195306,76840.0,76836.0,0.169717]
[1731202608535,0.00195306,76840.0,76839.0,0.07209595]
[1731202609136,0.03380833,76840.0,76839.0,0.07209595]
[1731202609336,0.03380833,76840.0,76839.0,0.11220451]
[1731202609742,0.00195306,76840.0,76839.0,0.11220451]
[1731202611446,0.00195306,76840.0,76839.0,0.13445771]
[1731202612040,0.00195306,76840.0,76839.0,0.11220451]
[1731202612347,0.00195306,76840.0,76836.0,0.10468]
[1731202612548,0.3608,76837.0,76834.0,0.00076]
[1731202612740,0.065038,76836.0,76829.0,0.10468]
[1731202613538,0.065043,76830.0,76822.0,0.065049]
[1731202613733,0.065043,76830.0,76822.0,0.169729]
[1731202613939,0.0303,76829.0,76822.0,0.169729]
[1731202614546,0.095344,76829.0,76822.0,0.169729]
[1731202614747,0.065045,76828.0,76823.0,0.10468]
[1731202615748,0.065045,76828.0,76822.0,0.065049]
[1731202617244,0.0251322,76827.0,76822.0,0.065049]
[1731202617553,0.065045,76828.0,76822.0,0.065049]
[1731202617761,0.0251322,76827.0,76822.0,0.065049]
[1731202618052,0.065045,76828.0,76822.0,0.065049]
[1731202620350,0.065045,76828.0,76822.0,0.425849]
[1731202621061,0.0303,76829.0,76822.0,0.3608]
[1731202621253,0.065047,76825.0,76822.0,0.3608]
[1731202621448,0.02513149,76824.0,76822.0,0.3608]
[1731202621649,0.02513149,76823.0,76822.0,0.425849]
[1731202621844,0.02513219,76828.0,76822.0,0.53805351]
[1731202622045,0.02513219,76827.0,76822.0,0.53805351]
[1731202622358,0.02513219,76826.0,76822.0,0.53805351]
[1731202622542,0.02513219,76825.0,76822.0,0.53805351]
[1731202622854,0.02513144,76824.0,76822.0,0.53805351]
[1731202623153,0.0303,76829.0,76822.0,0.53805351]
[1731202623358,0.065045,76827.0,76822.0,0.53805351]
[1731202623651,0.02513166,76826.0,76822.0,0.53805351]
[1731202624752,0.065045,76827.0,76822.0,0.53805351]
[1731202624950,0.065045,76827.0,76823.0,0.065048]
[1731202625350,0.0303,76829.0,76822.0,0.47300451]
[1731202625656,0.0303,76829.0,76825.0,0.065046]
[1731202626346,0.38410363,76837.0,76825.0,0.065046]
[1731202626347,0.065042,76830.0,76825.0,0.065046]
[1731202626549,0.0309,76836.0,76825.0,0.065046]
[1731202627155,0.065044,76829.0,76825.0,0.065046]
[1731202627853,0.065043,76830.0,76822.0,0.47300451]
[1731202628751,0.0324,76834.0,76822.0,0.47300451]
[1731202629052,0.3608,76830.0,76822.0,0.11220451]
[1731202629255,0.065046,76827.0,76822.0,0.11220451]
[1731202631547,0.3608,76830.0,76823.0,0.3608]
[1731202631945,0.425843,76830.0,76823.0,0.3608]
[1731202632144,0.425843,76830.0,76822.0,0.17725351]
[1731202632361,0.065043,76829.0,76822.0,0.17725351]
[1731202632766,0.3608,76830.0,76822.0,0.17725351]
[1731202633053,0.065044,76828.0,76822.0,0.17725351]
[1731202633250,0.3608,76830.0,76820.0,0.00195247]
[1731202633251,0.065049,76822.0,76820.0,0.00195247]
[1731202633452,0.0314,76821.0,76820.0,0.00195247]
[1731202637155,0.09645,76821.0,76820.0,0.00195247]
[1731202639970,0.15345007,76821.0,76820.0,0.00195247]
[1731202640360,0.15345007,76821.0,76820.0,0.00120765]
[1731202640760,0.15344921,76821.0,76820.0,0.00120765]
[1731202641357,0.15344921,76821.0,76820.0,0.07328554]
[1731202641965,0.19338908,76821.0,76820.0,0.07328554]
[1731202642170,0.19338904,76821.0,76820.0,0.07328554]
[1731202646077,0.19338904,76821.0,76820.0,0.00120765]
[1731202646371,0.19338904,76821.0,76820.0,0.00073252]
[1731202646876,0.09645,76821.0,76820.0,0.00073252]
[1731202650075,0.09645,76821.0,76807.0,0.3608]
[1731202650076,0.20069188,76821.0,76803.0,0.03904122]
[1731202650267,0.065072,76795.0,76793.0,0.03295321]
[1731202650661,0.065072,76795.0,76794.0,0.00076]
[1731202650867,0.065072,76795.0,76793.0,0.00195321]
[1731202651169,0.065072,76795.0,76756.0,0.065105]
[1731202651170,0.065085,76780.0,76779.0,0.07846187]
[1731202651372,0.065085,76780.0,76778.0,0.06516]
[1731202651670,0.3608,76787.0,76775.0,0.47320403]
[1731202651862,0.0313,76786.0,76775.0,0.47320403]
[1731202652171,0.0313,76786.0,76775.0,0.49541464]
[1731202652367,0.0313,76786.0,76775.0,0.47320403]
[1731202652574,0.065087,76777.0,76775.0,0.11240403]
[1731202654679,0.0313,76786.0,76775.0,0.11240403]
[1731202654680,0.08779012,76783.0,76775.0,0.11240403]
[1731202654871,0.065084,76782.0,76781.0,0.11240403]
[1731202656075,0.0225568,76786.0,76781.0,0.11240403]
[1731202656278,0.3608,76787.0,76781.0,0.11240403]
[1731202657078,0.425879,76787.0,76781.0,0.11240403]
[1731202657374,0.3608,76787.0,76781.0,0.17748803]
[1731202658077,0.3608,76787.0,76781.0,0.20046992]
[1731202658476,0.3608,76787.0,76781.0,0.11240403]
[1731202658778,0.065086,76779.0,76777.0,0.10444]
[1731202662074,0.0645,76786.0,76773.0,0.38369303]
[1731202662275,0.065088,76776.0,76774.0,0.10444]
[1731202662479,0.0311,76785.0,76773.0,0.38369303]
[1731202662788,0.06509,76774.0,76773.0,0.38369303]
[1731202662982,0.06509,76774.0,76773.0,0.02289303]
[1731202663277,0.06509,76774.0,76772.0,0.10444]
[1731202664481,0.065085,76780.0,76772.0,0.10444]
[1731202664680,0.065085,76780.0,76777.0,0.11240403]
[1731202664877,0.0311,76785.0,76777.0,0.11240403]
[1731202664878,0.065086,76779.0,76777.0,0.11240403]
[1731202670592,0.065082,76784.0,76777.0,0.11240403]
[1731202671092,0.0311,76785.0,76777.0,0.11240403]
[1731202671393,0.08676563,76786.0,76777.0,0.11240403]
[1731202671590,0.065082,76784.0,76783.0,0.11240403]
[1731202673596,0.0324,76786.0,76783.0,0.11240403]
[1731202674696,0.09748,76786.0,76783.0,0.11240403]
[1731202675489,0.065081,76785.0,76783.0,0.11240403]
[1731202677387,0.065081,76785.0,76778.0,0.10154122]
[1731202677589,0.065081,76785.0,76778.0,0.0625]
[1731202677793,0.065081,76785.0,76778.0,0.095486]
[1731202677991,0.065081,76785.0,76778.0,0.11773771]
[1731202680893,0.065081,76785.0,76777.0,0.47392403]
[1731202680894,0.0324,76786.0,76777.0,0.36152]
[1731202681095,0.025146,76785.0,76774.0,0.10432]
[1731202681297,0.025146,76784.0,76774.0,0.10432]
[1731202681504,0.025146,76784.0,76767.0,0.19585899]
[1731202681505,0.025146,76783.0,76769.0,0.03904122]
[1731202681696,0.065092,76771.0,76767.0,0.13471622]
[1731202681898,0.065092,76771.0,76768.0,0.10432]
[1731202682091,0.065092,76771.0,76768.0,0.169415]
[1731202682399,0.065089,76775.0,76771.0,0.065092]
[1731202682600,0.3608,76779.0,76768.0,0.10432]
[1731202682900,0.065093,76771.0,76768.0,0.10432]
[1731202683605,0.065093,76771.0,76769.0,0.065094]
[1731202683990,0.065093,76771.0,76769.0,0.425894]
[1731202684407,0.3608,76779.0,76768.0,0.10432]
[1731202684595,0.3608,76772.0,76769.0,0.16428483]
[1731202684795,0.3608,76772.0,76768.0,0.10432]
[1731202684796,0.065093,76770.0,76768.0,0.10432]
[1731202685194,0.0319,76771.0,76766.0,0.0650687]
[1731202685195,0.065095,76768.0,76766.0,0.0650687]
[1731202685408,0.065097,76766.0,76764.0,0.0650687]
[1731202686219,0.065097,76766.0,76762.0,0.02298431]
[1731202686220,0.065098,76764.0,76763.0,0.0650687]
[1731202687420,0.065098,76764.0,76762.0,0.0650687]
[1731202688516,0.065098,76764.0,76761.0,0.49713396]
[1731202688517,0.3608,76772.0,76763.0,0.16429083]
[1731202688729,0.3608,76772.0,76761.0,0.49713396]
[1731202688730,0.06509,76774.0,76771.0,0.11240403]
[1731202689018,0.06509,76774.0,76773.0,0.11240403]
[1731202690123,0.06509,76774.0,76773.0,0.15141811]
[1731202690424,0.06509,76774.0,76773.0,0.11240403]
[1731202692018,0.3608,76779.0,76773.0,0.11240403]
[1731202692323,0.065089,76776.0,76774.0,0.03901365]
[1731202692513,0.3608,76779.0,76773.0,0.15141768]
[1731202692719,0.06509,76775.0,76773.0,0.11240403]
[1731202693429,0.065092,76772.0,76768.0,0.47320403]
[1731202693926,0.3608,76779.0,76768.0,0.47320403]
[1731202694120,0.065093,76771.0,76768.0,0.47320403]
[1731202696227,0.065093,76771.0,76769.0,0.065094]
[1731202696525,0.065088,76777.0,76771.0,0.065092]
[1731202696718,0.065088,76777.0,76774.0,0.11240403]
[1731202696919,0.3608,76779.0,76774.0,0.11240403]
[1731202697119,0.065088,76776.0,76774.0,0.11240403]
[1731202698425,0.065079,76787.0,76775.0,0.3608]
[1731202698630,0.02514736,76786.0,76784.0,0.065081]
[1731202698818,0.031,76791.0,76787.0,0.065078]
[1731202699125,0.02514538,76790.0,76784.0,0.0780175]
[1731202699329,0.3608,76792.0,76790.0,0.17748003]
[1731202699627,0.0019541,76795.0,76792.0,0.065074]
[1731202700314,0.0019541,76795.0,76793.0,0.065074]
[1731202701413,0.0019541,76795.0,76794.0,0.3608]
[1731202702323,0.0019541,76795.0,76794.0,0.46512]
[1731202703340,0.0019541,76795.0,76794.0,0.48813384]
[1731202710336,0.0019541,76795.0,76794.0,0.60053787]
[1731202710632,0.0019541,76795.0,76794.0,0.48813384]
[1731202712335,0.0019541,76795.0,76794.0,0.38381384]
[1731202712531,0.0019541,76795.0,76794.0,0.48793384]
[1731202713723,0.0019541,76795.0,76794.0,0.38381384]
[1731202713929,0.0019541,76795.0,76794.0,0.60033787]
[1731202717038,0.0019541,76795.0,76794.0,0.23953787]
[1731202718639,0.0019541,76795.0,76794.0,0.13541787]
[1731202718843,0.0019541,76795.0,76794.0,0.23953787]
[1731202721145,0.0019541,76795.0,76794.0,0.30461087]
[1731202725546,0.0019541,76795.0,76792.0,0.3608]
[1731202725746,0.065074,76793.0,76792.0,0.3608]
[1731202725946,0.065074,76793.0,76792.0,0.46492]
[1731202728352,0.0019541,76795.0,76783.0,0.39967904]
[1731202728661,0.065077,76789.0,76788.0,0.10412]
[1731202728951,0.065083,76782.0,76781.0,0.11240403]
[1731202729457,0.09022828,76782.0,76781.0,0.07214038]
[1731202730548,0.09022824,76782.0,76781.0,0.07214038]
[1731202731455,0.09022824,76782.0,76781.0,0.11237265]
[1731202732659,0.09022824,76782.0,76775.0,0.28947606]
[1731202732660,0.065087,76777.0,76775.0,0.28947606]
[1731202732849,0.05824524,76776.0,76775.0,0.28947606]
[1731202733342,0.15521419,76776.0,76774.0,0.12668325]
[1731202733543,0.02514524,76775.0,76774.0,0.12668325]
[1731202733755,0.02514524,76775.0,76769.0,0.11237265]
[1731202733756,0.065092,76771.0,76769.0,0.11237265]
[1731202733946,0.065092,76771.0,76769.0,0.1347286]
[1731202733947,0.02514524,76770.0,76769.0,0.1347286]
[1731202734147,0.02514524,76770.0,76769.0,0.2388486]
[1731202734559,0.02514524,76770.0,76764.0,0.11237265]
[1731202734752,0.065096,76767.0,76766.0,0.00076]
[1731202735062,0.09024714,76767.0,76765.0,0.10412]
[1731202735254,0.05515114,76766.0,76765.0,0.10412]
[1731202735951,0.05515114,76766.0,76764.0,0.11237265]
[1731202736151,0.09024914,76765.0,76764.0,0.10412]
[1731202736352,0.12074914,76765.0,76764.0,0.10412]
[1731202736559,0.065101,76761.0,76759.0,0.21649265]
[1731202736856,0.0311,76760.0,76759.0,0.21649265]
[1731202737056,0.0311,76760.0,76759.0,0.23879123]
[1731202739455,0.39148,76766.0,76760.0,0.065102]
[1731202739760,0.39148,76766.0,76765.0,0.11237265]
[1731202739761,0.3908,76766.0,76765.0,0.11237265]
[1731202741057,0.065101,76762.0,76759.0,0.21649265]
[1731202741259,0.065102,76761.0,76759.0,0.21649265]
[1731202741468,0.0301,76760.0,76759.0,0.21649265]
[1731202742168,0.0301,76760.0,76759.0,0.10412]
[1731202743059,0.0301,76760.0,76754.0,0.53907965]
[1731202743258,0.065105,76756.0,76754.0,0.47317265]
[1731202743559,0.065105,76756.0,76754.0,0.3608]
[1731202744068,0.065106,76755.0,76753.0,0.11237265]
[1731202744267,0.0301,76760.0,76744.0,0.0319]
[1731202744268,0.3608,76759.0,76744.0,0.0319]
[1731202744561,0.065113,76747.0,76744.0,0.104]
[1731202745558,0.3608,76752.0,76744.0,0.104]
[1731202745753,0.065111,76750.0,76743.0,0.104]
[1731202746156,0.065111,76750.0,76746.0,0.11237265]
[1731202747066,0.3608,76759.0,76746.0,0.11237265]
[1731202747255,0.065104,76757.0,76746.0,0.11237265]
[1731202747557,0.065107,76755.0,76746.0,0.11237265]
[1731202748568,0.3608,76759.0,76752.0,0.11237265]
[1731202748771,0.3608,76759.0,76758.0,0.11237265]
[1731202748976,0.3608,76769.0,76758.0,0.47317265]
[1731202749269,0.3608,76769.0,76768.0,0.17746765]
[1731202749456,0.3608,76769.0,76768.0,0.28146765]
[1731202751064,0.00195454,76775.0,76768.0,0.21637265]
[1731202751368,0.00195454,76775.0,76774.0,0.11237265]
[1731202764870,0.00195454,76775.0,76774.0,0.14337265]
[1731202768389,0.00195454,76775.0,76774.0,0.24737265]
[1731202768684,0.3608,76780.0,76776.0,0.065088]
[1731202769585,0.3608,76780.0,76774.0,0.24737265]
[1731202769782,0.3608,76780.0,76778.0,0.065086]
[1731202771491,0.02514686,76779.0,76774.0,0.17746265]
[1731202771675,0.3608,76780.0,76775.0,0.104]
[1731202771877,0.0251469,76779.0,76776.0,0.104]
[1731202772087,0.3608,76780.0,76776.0,0.104]
[1731202772287,0.02514723,76779.0,76776.0,0.104]
[1731202772486,0.02514723,76778.0,76776.0,0.104]
[1731202772691,0.425885,76780.0,76776.0,0.104]
[1731202772894,0.02514736,76779.0,76776.0,0.104]
[1731202773191,0.425885,76780.0,76776.0,0.104]
[1731202773192,0.36152,76780.0,76776.0,0.104]
[1731202773382,0.02514704,76779.0,76776.0,0.104]
[1731202773582,0.3608,76780.0,76776.0,0.104]
[1731202773891,0.02514704,76779.0,76776.0,0.104]
[1731202774090,0.3608,76780.0,76776.0,0.104]
[1731202774390,0.032,76784.0,76782.0,0.065082]
[1731202774581,0.02514603,76783.0,76781.0,0.11237265]
[1731202774785,0.032,76784.0,76781.0,0.11237265]
[1731202775482,0.097082,76784.0,76781.0,0.11237265]
[1731202775884,0.032,76784.0,76777.0,0.065087]
[1731202776084,0.032,76784.0,76775.0,0.3608]
[1731202776085,0.3608,76781.0,76775.0,0.3608]
[1731202776280,0.065088,76777.0,76775.0,0.3608]
[1731202776486,0.064,76776.0,76775.0,0.3608]
[1731202776694,0.064,76776.0,76772.0,0.10384]
[1731202777396,0.064,76776.0,76774.0,0.07216312]
[1731202777897,0.129089,76776.0,76774.0,0.07216312]
[1731202778798,0.064,76776.0,76773.0,0.03887904]
[1731202779104,0.064,76776.0,76772.0,0.10384]
[1731202779105,0.065091,76773.0,76772.0,0.21505269]
[1731202779301,0.065091,76773.0,76772.0,0.10384]
[1731202779886,0.065093,76770.0,76769.0,0.10384]
[1731202781796,0.3608,76774.0,76766.0,0.10384]
[1731202782091,0.3608,76774.0,76762.0,0.00195389]
[1731202782092,0.031,76769.0,76762.0,0.04100346]
[1731202782297,0.031,76769.0,76762.0,0.00195389]
[1731202782298,0.065099,76763.0,76762.0,0.00195389]
[1731202782800,0.09025243,76763.0,76762.0,0.00195389]
[1731202783096,0.065107,76754.0,76753.0,0.10384]
[1731202783293,0.09026043,76754.0,76753.0,0.10384]
[1731202783489,0.09026043,76754.0,76745.0,0.065114]
[1731202783490,0.09026043,76754.0,76746.0,0.10384]
[1731202783683,0.08995343,76753.0,76746.0,0.10384]
[1731202783894,0.08995343,76753.0,76746.0,0.022916]
[1731202784202,0.08995343,76753.0,76746.0,0.126756]
[1731202784992,0.15506143,76753.0,76746.0,0.126756]
[1731202785192,0.02515343,76752.0,76746.0,0.126756]
[1731202785396,0.129908,76753.0,76746.0,0.126756]
[1731202785591,0.06511,76751.0,76746.0,0.126756]
[1731202785794,0.065111,76750.0,76746.0,0.126756]
[1731202786296,0.065111,76750.0,76746.0,0.19187]
[1731202788999,0.0648,76753.0,76746.0,0.19187]
[1731202789000,0.065111,76749.0,76746.0,0.126756]
[1731202789302,0.0648,76753.0,76746.0,0.126756]
[1731202789502,0.0648,76753.0,76746.0,0.10384]
[1731202789503,0.065113,76748.0,76746.0,0.10384]
[1731202790597,0.065113,76748.0,76742.0,0.11241218]
[1731202790598,0.065115,76744.0,76742.0,0.10388]
[1731202792203,0.3608,76750.0,76738.0,0.13740521]
[1731202792396,0.01771395,76749.0,76738.0,0.1058342]
[1731202792596,0.065119,76740.0,76738.0,0.1058342]
[1731202793296,0.065119,76740.0,76738.0,0.0019542]
[1731202793598,0.01827606,76739.0,76738.0,0.0019542]
[1731202793801,0.07897606,76739.0,76738.0,0.0019542]
[1731202795602,0.0607,76739.0,76738.0,0.0019542]
[1731202796308,0.065115,76745.0,76738.0,0.11436638]
[1731202796489,0.05554217,76749.0,76738.0,0.11436638]
[1731202796692,0.01796984,76748.0,76738.0,0.11436638]
[1731202796894,0.01796984,76747.0,76738.0,0.11436638]
[1731202797098,0.01796984,76746.0,76743.0,0.11241218]
[1731202797293,0.0322,76749.0,76748.0,0.11241218]
[1731202798002,0.0322,76749.0,76739.0,0.42596]
[1731202798003,0.0322,76749.0,76739.0,0.46468]
[1731202798202,0.065117,76742.0,76739.0,0.46468]
[1731202798604,0.0322,76749.0,76739.0,0.46468]
[1731202798804,0.065118,76741.0,76739.0,0.46468]
[1731202799311,0.01761487,76740.0,76739.0,0.46468]
[1731202800099,0.065113,76747.0,76739.0,0.46468]
[1731202800304,0.065115,76745.0,76742.0,0.11241218]
[1731202801510,0.01749791,76744.0,76742.0,0.11241218]
[1731202801704,0.01749791,76743.0,76742.0,0.11241218]
[1731202802414,0.3608,76757.0,76742.0,0.17752918]
[1731202802415,0.065112,76748.0,76742.0,0.17752918]
[1731202803005,0.3608,76757.0,76742.0,0.17752918]
[1731202803006,0.065113,76747.0,76742.0,0.17752918]
[1731202803618,0.01786832,76746.0,76742.0,0.11241218]
[1731202803818,0.01786832,76745.0,76742.0,0.11241218]
[1731202804516,0.065117,76742.0,76741.0,0.10376]
[1731202804716,0.08298532,76742.0,76741.0,0.10376]
[1731202805311,0.01786832,76742.0,76741.0,0.10376]
[1731202806516,0.065112,76748.0,76741.0,0.10376]
[1731202807018,0.065112,76748.0,76742.0,0.065117]
[1731202808109,0.14291218,76760.0,76741.0,0.10376]
[1731202808419,0.065109,76752.0,76745.0,0.11241218]
[1731202808824,0.06511,76751.0,76745.0,0.11241218]
[1731202809718,0.065111,76750.0,76745.0,0.11241218]
[1731202809917,0.14291218,76760.0,76745.0,0.11241218]
[1731202810210,0.065112,76748.0,76743.0,0.03904957]
[1731202810417,0.065113,76747.0,76745.0,0.03904957]
[1731202811406,0.065113,76747.0,76744.0,0.05183873]
[1731202811816,0.065114,76746.0,76744.0,0.05183873]
[1731202812312,0.065115,76745.0,76743.0,0.05183873]
[1731202812512,0.14291218,76760.0,76741.0,0.10376]
[1731202812513,0.065117,76743.0,76741.0,0.10376]
[1731202813017,0.065117,76743.0,76741.0,0.15583771]
[1731202813421,0.065117,76743.0,76741.0,0.10376]
[1731202814318,0.065118,76741.0,76740.0,0.05208058]
[1731202814621,0.065118,76741.0,76740.0,0.05208268]
[1731202816423,0.06512,76739.0,76736.0,0.10376]
[1731202817915,0.06512,76739.0,76736.0,0.16886073]
[1731202819519,0.06512,76739.0,76737.0,0.06510073]
[1731202819718,0.06512,76739.0,76738.0,0.06705493]
[1731202819935,0.06512,76739.0,76738.0,0.0019542]
[1731202820618,0.065115,76745.0,76739.0,0.06516]
[1731202820916,0.065115,76745.0,76743.0,0.11241218]
[1731202821425,0.0309,76754.0,76743.0,0.11241218]
[1731202821617,0.065113,76747.0,76743.0,0.11241218]
[1731202821919,0.05405168,76754.0,76743.0,0.11241218]
[1731202822223,0.065108,76753.0,76743.0,0.11241218]
[1731202822429,0.065113,76747.0,76743.0,0.11241218]
[1731202823127,0.05405168,76754.0,76743.0,0.11241218]
[1731202823329,0.065115,76745.0,76743.0,0.11241218]
[1731202823622,0.065116,76743.0,76742.0,0.46456]
[1731202825318,0.065116,76743.0,76742.0,0.53677089]
[1731202826421,0.065111,76749.0,76742.0,0.53677089]
[1731202826620,0.065111,76749.0,76748.0,0.07221089]
[1731202826814,0.065111,76749.0,76748.0,0.04016114]
[1731202827018,0.12626257,76754.0,76742.0,0.46528]
[1731202827019,0.065114,76746.0,76744.0,0.07221089]
[1731202827216,0.00195485,76755.0,76744.0,0.07221089]
[1731202827422,0.00195485,76755.0,76742.0,0.46528]
[1731202827423,0.00195485,76755.0,76753.0,0.07221089]
[1731202827923,0.00195485,76755.0,76753.0,0.17597089]
[1731202828319,0.00195485,76755.0,76754.0,0.07221089]
[1731202828519,0.00195485,76755.0,76754.0,0.13731789]
[1731202828827,0.00195485,76755.0,76754.0,0.065107]
[1731202829129,0.00195485,76755.0,76754.0,0.20952878]
[1731202829327,0.00195485,76755.0,76754.0,0.21659954]
[1731202829529,0.00195485,76755.0,76754.0,0.22963881]
[1731202829924,0.00195485,76755.0,76754.0,0.17754106]
[1731202830324,0.00195485,76755.0,76754.0,0.22959962]
[1731202831322,0.00195485,76755.0,76754.0,0.17754106]
[1731202831724,0.00195485,76755.0,76754.0,0.20022782]
[1731202832223,0.065107,76754.0,76753.0,0.05205856]
[1731202832528,0.065107,76754.0,76752.0,0.05205856]
[1731202832736,0.065107,76754.0,76753.0,0.05205856]
[1731202833124,0.36148,76771.0,76753.0,0.05205856]
[1731202833335,0.36148,76771.0,76770.0,0.11243406]
[1731202833336,0.3608,76771.0,76770.0,0.11243406]
[1731202833637,0.00068,76774.0,76772.0,0.065091]
[1731202833835,0.00195442,76779.0,76772.0,0.065091]
[1731202834028,0.065087,76778.0,76772.0,0.065091]
[1731202834429,0.00195442,76779.0,76770.0,0.25510223]
[1731202834430,0.00195442,76779.0,76770.0,0.21607406]
[1731202834641,0.065088,76777.0,76770.0,0.21607406]
[1731202835531,0.065088,76777.0,76770.0,0.28116706]
[1731202837433,0.00195442,76779.0,76770.0,0.21607406]
[1731202837629,0.00195442,76779.0,76776.0,0.11243406]
[1731202837823,0.00195442,76779.0,76776.0,0.06437294]
[1731202838328,0.00195442,76779.0,76777.0,0.1036]
[1731202840242,0.06704042,76779.0,76777.0,0.1036]
[1731202840435,0.06704042,76779.0,76770.0,0.11243406]
[1731202840436,0.00195442,76779.0,76770.0,0.11243406]
[1731202840741,0.065093,76771.0,76765.0,0.065097]
[1731202841036,0.065093,76771.0,76768.0,0.1036]
[1731202842129,0.065093,76771.0,76765.0,0.065097]
[1731202842130,0.3608,76777.0,76767.0,0.38310944]
[1731202842337,0.065094,76769.0,76767.0,0.3608]
[1731202842533,0.3608,76777.0,76766.0,0.1036]
[1731202842534,0.065096,76767.0,76766.0,0.1036]
[1731202842736,0.065098,76764.0,76762.0,0.1036]
[1731202843438,0.3608,76763.0,76752.0,0.11243406]
[1731202843642,0.3608,76763.0,76740.0,0.42561123]
[1731202843643,0.3608,76763.0,76753.0,0.1036]
[1731202843848,0.065106,76755.0,76753.0,0.1036]
[1731202849848,0.065103,76758.0,76753.0,0.1036]
[1731202850044,0.3608,76759.0,76753.0,0.1036]
[1731202850253,0.065104,76757.0,76753.0,0.1036]
[1731202851741,0.065105,76756.0,76753.0,0.1036]
[1731202854439,0.3608,76759.0,76753.0,0.1036]
[1731202854646,0.0651,76762.0,76758.0,0.11243406]
[1731202854838,0.0651,76762.0,76758.0,0.17753706]
[1731202856850,0.44934593,76768.0,76758.0,0.17753706]
[1731202857053,0.065096,76767.0,76758.0,0.17753706]
[1731202857248,0.44934593,76768.0,76758.0,0.17753706]
[1731202857452,0.44866593,76768.0,76758.0,0.11243406]
[1731202857654,0.44866593,76768.0,76756.0,0.3608]
[1731202857951,0.065104,76758.0,76756.0,0.38368132]
[1731202859549,0.065104,76758.0,76756.0,0.02288132]
[1731202859752,0.065104,76758.0,76753.0,0.21603406]
[1731202861145,0.065104,76758.0,76753.0,0.23859182]
[1731202861950,0.0651,76762.0,76755.0,0.3608]
[1731202862148,0.44866593,76768.0,76762.0,0.11243406]
[1731202862149,0.065097,76766.0,76762.0,0.11243406]
[1731202862654,0.39472,76768.0,76763.0,0.065099]
[1731202862848,0.39472,76768.0,76764.0,0.10348]
[1731202862849,0.394,76768.0,76764.0,0.10348]
[1731202863152,0.065097,76766.0,76764.0,0.10348]
[1731202866153,0.39468,76768.0,76764.0,0.10348]
[1731202866351,0.065098,76765.0,76764.0,0.10348]
[1731202867452,0.39468,76768.0,76755.0,0.00072]
[1731202867453,0.50711406,76768.0,76755.0,0.00072]
[1731202867649,0.50711406,76768.0,76748.0,0.00195429]
[1731202867650,0.065103,76759.0,76750.0,0.06129019]
[1731202867851,0.0638,76758.0,76752.0,0.10348]
[1731202868051,0.065108,76753.0,76752.0,0.10348]
[1731202871353,0.065108,76753.0,76752.0,0.14236674]